Workbook

Sheet Район
A1: Раздел 1
A2: Количество очков набранных
A3: на Первенствах района
A4: в сезоне 2024-2025
A6: № | B6: Ф.И.О. | C6: Кросс памяти Ануфриева А.А. | D6: На приз Сметаниной Р.П. | E6: Первенство Ижемской СШ | F6: Первенство памяти Семяшкина Н.П. | G6: Эстафета | H6: Итого | I6: Место
A7: Тренеры-преподаватели
A8: 1 | B8: Валейский К.Н. | C8: 564 | D8: 454 | E8: 454 | F8: 436 | G8: 848 | H8: =SUM(C8:G8) -> 2756 | I8: 1
A9: 2 | B9: Криушинская К.В | C9: 514 | D9: 488 | E9: 488 | F9: 378 | G9: 470 | H9: 2338 | I9: 2
A10: 3 | B10: Терентьев Л.А. | C10: 389 | D10: 313 | E10: 300 | F10: 296 | G10: 252 | H10: 1550 | I10: 3
A11: 4 | B11: Канев И.А. | C11: 360 | D11: 351 | E11: 344 | F11: 265 | G11: 130 | H11: 1450 | I11: 4
A12: 5 | B12: Ануфриев А.А. | C12: 370 | D12: 329 | E12: 315 | F12: 192 | G12: 140 | H12: 1346 | I12: 5
A13: 6 | B13: Вокуев И.М. | C13: 279 | D13: 190 | E13: 205 | F13: 221 | G13: 108 | H13: 1003 | I13: 6
A14: 7 | B14: Батманов И.В. | C14: 276 | D14: 194 | E14: 196 | F14: 90 | G14: 84 | H14: 840 | I14: 7
A15: 8 | B15: Чупрова И.В. | C15: 308 | E15: 256 | F15: 189 | H15: 753 | I15: 8
A16: 9 | B16: Ковальчук Л.А. | C16: 288 | D16: 242 | E16: 148 | G16: 90 | H16: =SUM(C16:G16) -> 768 | I16: 9
A17: 10 | B17: Артеев Р.В. | C17: 300 | D17: 164 | E17: 80 | F17: 56 | G17: 102 | H17: =SUM(C17:G17) -> 702 | I17: 10
A18: Тренеры-преподаватели по совместительству
A19: 1 | B19: Ануфриев Н.С. | C19: 181 | D19: 169 | E19: 130 | F19: 179 | H19: =SUM(C19:G19) -> 659 | I19: 1
A20: 2 | B20: Филиппова А.П. | D20: 140 | E20: 169 | F20: 120 | H20: =SUM(C20:G20) -> 429 | I20: 2
A21: 3 | B21: Терентьев И.Н. | C21: 102 | E21: 111 | F21: 75 | H21: =SUM(C21:G21) -> 288 | I21: 3
A22: 4 | B22: Рочев А.И. | C22: 113 | E22: 92 | H22: =SUM(C22:G22) -> 205 | I22: 4
A23: 5 | B23: Канев И.Н. | F23: 137 | H23: =SUM(C23:G23) -> 137 | I23: 5

Sheet РК
A1: Раздел 2
A2: Выступление обучающихся
A3: на Первенствах Республики Коми
A4: в сезоне 2024-2025
A6: № | B6: Ф.И.О. | I6: Итого | J6: Место
C7: Первенство РК по кроссу и лыжероллерам г. Сыктывкар 24-27.08. 2024 г. | D7: Первенство РК памяти семьи Париловых г. Сыктывкар 18-22. 12. 2024 г. | E7: Первенство РК памяти судьи ВС категории А.И. Потолицына старший возраст г. Сыктывкар 13-18.01.2025 г. | F7: Первенство РК на призы олимпийской чемпионки Ю.С. Ступак"На лыжи" средний возраст г. Сыктывкар 13-18.01.2025 г. | G7: Первенство РК по л/г младший возраст г. Ухта 26.02.-02.03.2025 г. | H7: Первенство РК среди юн. и дев. 17-18 лет г. Сыктывкар 22-23.2025 г.
A8: 1 | B8: Криушинская К.В. | C8: 728 | D8: 567 | E8: 393 | F8: 214 | G8: 216.5 | H8: 135 | I8: =SUM(C8:H8) -> 2253.5 | J8: 1
A9: 2 | B9: Валейский К.Н. | C9: 664 | D9: 539.5 | E9: 161.5 | F9: 416 | G9: 286.5 | H9: 105 | I9: =SUM(C9:H9) -> 2172.5 | J9: 2
A10: 3 | B10: Терентьев Л.А. | C10: 75 | D10: 75.5 | F10: 96 | G10: 46.5 | I10: =SUM(C10:H10) -> 293 | J10: 3
A11: 4 | B11: Ануфриев А.А. | D11: 119.5 | E11: 99.5 | F11: 15 | H11: 51 | I11: =SUM(C11:H11) -> 285 | J11: 4
A12: 5 | B12: Канев И.А. | D12: 71 | F12: 89.5 | G12: 80.5 | I12: =SUM(C12:H12) -> 241 | J12: 5
A13: 6 | B13: Чупрова И.В. | D13: 16.5 | I13: =SUM(C13:H13) -> 16.5 | J13: 6
A14: 8 | B14: Ковальчук Л.А. | I14: =SUM(C14:H14) -> 0
A15: 9 | B15: Батманов И.В. | I15: =SUM(C15:H15) -> 0
A16: 10 | B16: Артеев Р.В. | I16: 0
A17: 11 | B17: Вокуев И.М. | I17: 0
A19: 1 | B19: Рочев А.И. | I19: =SUM(C19:H19) -> 0
A20: 2 | B20: Ануфриев Н.С. | G20: 6 | I20: =SUM(C20:H20) -> 6 | J20: 1
A21: 3 | B21: Терентьев И.Н. | I21: =SUM(C21:H21) -> 0
A22: 4 | B22: Канев И.Н. | I22: =SUM(C22:H22) -> 0
A23: 5 | B23: Филиппова А.П. | I23: =SUM(C23:H23) -> 0

Sheet РФ
A1: Раздел 3
A2: Выступление обучающихся
A3: на Первенствах СЗФО, России, Мира
A4: в сезоне 2024-2025
A6: № | B6: Ф.И.О. | D6: РФ
D7: ВС соревн. среди дев. и юн. 17-18 лет г.Сыктывкар 06-09.12.2024 г. | E7: ВС соревн. на призы ЗМС Р.П. Сметаниной, среди дев. и юн. 15-16 лет г.Сыктывкар- 29.03-02.04. 2025 г. | F7: ВС соревн. среди юниоров 19-20 лет г.Тюмень 12-17.2024 г. | G7: Первенство СЗФО среди юн. и дев. 17-18 лет г.Кировск 29.01.-02.02.2025г. | H7: Первенство России среди юн. и дев. 17-18 лет Арх. обл., д. Кононовская 05-08.03.2025г. | I7: Кубок России VII этапа г. Сыктывкар 17.03.2025 г. | J7: Первенство России среди юниоров 19-20 лет Кирово-Чипецк 19-22.03.2025 г. | K7: Итог | S7: Место
A8: 1 | B8: Криушинская К.В | D8: 363 | E8: 97 | F8: 143 | G8: 592 | H8: 568 | I8: 152 | J8: 372 | K8: =SUM(D8:J8) -> 2287 | S8: 1
A9: 2 | B9: Ануфриев А.А. | K9: =SUM(D9:H9) -> 0
A10: 3 | B10: Артеев Р.В. | K10: 0
A11: 4 | B11: Валейский К.Н. | E11: 447 | K11: 447 | S11: 2
A12: 5 | B12: Чупрова И.В. | K12: 0
A13: 6 | B13: Терентьев Л.А. | K13: 0
A14: 7 | B14: Ковальчук Л.А. | K14: 0
A15: 8 | B15: Канев И.А. | K15: 0
A16: 9 | B16: Батманов И.В. | K16: 0
A17: 10 | B17: Вокуев И.М. | K17: 0
A18: Тренеры-преподаватели по совместительству
A19: 1 | B19: Терентьев И.Н. | K19: 0
A20: 2 | B20: Ануфриев Н.С. | K20: 0
A21: 3 | B21: Канев И.Н. | K21: 0
A22: 4 | B22: Рочев А.И. | K22: 0
A23: 5 | B23: Филиппова А.П. | K23: =SUM(D23:H23) -> 0

Sheet подготовка разрядников
A1: Раздел 4
A2: Подготовка разрядников в сезоне 2024-2025 г.
A4: № | B4: Ф.И.О. | C4: МС 500 оч. | D4: КМС 250 | E4: 1р. 100 оч. | F4: 2р. 50 оч. | G4: 3р. 30 оч. | H4: Итог | I4: Место
A5: 1 | B5: Валейский К.Н. | E5: 100 | G5: 210 | H5: =SUM(C5:G5) -> 310 | I5: 1
A6: 2 | B6: Криушинская К.В | E6: 100 | F6: 50 | G6: 110 | H6: =SUM(C6:G6) -> 260 | I6: 2
A7: 3 | B7: Канев И.А. | E7: 100 | G7: 60 | H7: 160 | I7: 3
A8: 4 | B8: Терентьев Л.А. | G8: 60 | H8: 60 | I8: 4
A9: 5 | B9: Ануфриев А.А. | G9: 60 | H9: 60 | I9: 4
A10: 6 | B10: Артеев Р.В. | G10: 60 | H10: =SUM(C10:G10) -> 60 | I10: 4
A11: 7 | B11: Вокуев И.М. | G11: 30 | H11: 30 | I11: 7
A12: 8 | B12: Ковальчук Л.А. | H12: =SUM(C12:G12) -> 0
A13: 9 | B13: Чупрова И.В. | H13: 0
A14: 10 | B14: Батманов И.В. | H14: 0
A15: Тренеры-преподаватели по совместительству
A16: 1 | B16: Филиппова А.П. | G16: 60 | H16: =SUM(C16:G16) -> 60 | I16: 1
A17: 2 | B17: Рочев А.И. | H17: =SUM(C17:G17) -> 0
A18: 3 | B18: Канев И.Н. | H18: =SUM(C18:G18) -> 0
A19: 4 | B19: Ануфриев Н.С. | H19: =SUM(C19:G19) -> 0
A20: 5 | B20: Терентьев И.Н. | H20: =SUM(C20:G20) -> 0
A22: Выполнение 1 разряда
A23: № | B23: Фамилия,Имя | C23: Год | D23: Тренер
A24: 1. | B24: Тарабукина Эйла | C24: 2011 | D24: Криушинская К.В.
A25: 2. | B25: Артеева Софья | C25: 2009 | D25: Валейский К.Н.
A26: 3. | B26: Рыков Михаил | C26: 2009 | D26: Канев И.А.

Sheet РСДЮШОР,ВУЗы, СУЗы
B1: Раздел 5
A2: Зачисление выпускников в спортивные сборные команды РК, в ВУЗы и СУЗы
A3: физкультурно-спортивной направленности в период с сентября 2024г.
A5: № | B5: Ф.И.О. | C5: Сборные команды РК 100 | D5: ВУЗ 60 | E5: СУЗ 20 | F5: Итого | G5: Место
A6: 1 | B6: Криушинская К.В | C6: 100 | F6: =SUM(C6:E6) -> 100 | G6: 1
A7: 2 | B7: Батманов И.В. | F7: =SUM(C7:E7) -> 0
A8: 3 | B8: Канев И.А. | F8: 0
A9: 4 | B9: Ковальчук Л.А. | F9: 0
A10: 5 | B10: Чупрова И.В. | F10: 0
A11: 6 | B11: Ануфриев А.А. | F11: 0
A12: 7 | B12: Терентьев Л.А. | F12: 0
A13: 8 | B13: Валейский К.Н. | F13: 0
A14: 9 | B14: Вокуев И.М. | F14: 0
A15: 10 | B15: Артеев Р.В. | F15: 0
A16: Тренеры-преподаватели по совместительству
A17: 1 | B17: Терентьев И.Н. | E17: 20 | F17: 20 | G17: 1
A18: 2 | B18: Канев И.Н. | F18: 0
A19: 3 | B19: Ануфриев Н.С. | F19: 0
A20: 4 | B20: Терентьева Т.Н. | F20: 0
A21: 5 | B21: Рочев А.И. | F21: 0
A22: 6 | B22: Филиппова А.П. | F22: =SUM(C22:E22) -> 0
A24: 1 | B24: Дроботов Антон (Криушинская К.В.) | D24: ГАУ РК "ЦСПСК"

Sheet ИТОГОВАЯ ТАБЛИЦА
A2: Итоговый протокол смотра-конкурса среди тренеров-преподавателей
A3: МБУ ДО "Ижемская спортивная школа имени С.А. Артеева"
A4: за сезон 2024-2025 учебный год
A6: № | B6: Ф.И.О. | C6: Раздел 1 | D6: Раздел 2 | E6: Раздел 3 | F6: Раздел 4 | G6: Раздел 5 | H6: Итого | I6: Место
A7: 1 | B7: Криушинская К.В | C7: 2338 | D7: 2353.5 | E7: 2287 | F7: 260 | G7: 100 | H7: =SUM(C7:G7) -> 7338.5 | I7: 1
A8: 2 | B8: Валейский К.Н. | C8: 2756 | D8: 2172.5 | E8: 447 | F8: 310 | H8: 5685.5 | I8: 2
A9: 3 | B9: Терентьев Л.А. | C9: 1550 | D9: 293 | F9: 60 | H9: =SUM(C9:G9) -> 1903 | I9: 3
A10: 4 | B10: Канев И.А. | C10: 1450 | D10: 241 | F10: 160 | H10: =SUM(C10:G10) -> 1851 | I10: 4
A11: 5 | B11: Ануфриев А.А. | C11: 1346 | D11: 285 | F11: 60 | H11: 1691 | I11: 5
A12: 6 | B12: Вокуев И.М. | C12: 1003 | F12: 30 | H12: 1033 | I12: 6
A13: 7 | B13: Батманов И.В. | C13: 840 | H13: 840 | I13: 7
A14: 8 | B14: Чупрова И.В. | C14: 753 | D14: 16.5 | H14: 769.5 | I14: 8
A15: 9 | B15: Ковальчук Л.А. | C15: 768 | H15: =SUM(C15:G15) -> 768 | I15: 10
A16: 10 | B16: Артеев Р.В. | C16: 702 | F16: 60 | H16: =SUM(C16:G16) -> 762 | I16: 9
A17: Тренеры-преподаватели по совместительству
A18: 1 | B18: Ануфриев Н.С. | C18: 659 | D18: 6 | H18: =SUM(C18:G18) -> 665 | I18: 1
A19: 2 | B19: Филиппова А.П. | C19: 429 | F19: 60 | H19: =SUM(C19:G19) -> 489 | I19: 2
A20: 3 | B20: Терентьев И.Н. | C20: 288 | G20: 20 | H20: =SUM(C20:G20) -> 308 | I20: 3
A21: 4 | B21: Рочев А.И. | C21: 205 | H21: =SUM(C21:G21) -> 205 | I21: 4
A22: 5 | B22: Канев И.Н. | C22: 137 | H22: =SUM(C22:G22) -> 137 | I22: 5
A23: Председатель | D23: Н.А. Поздеева, И.о. директора МБУ ДО "Ижемская спортивная школа имени С.А. Артеева"
A26: Секретарь | D26: Ю.В. Сметанина, инструктор-методист МБУ ДО "Ижемская спортивная школа имени С.А. Артеева"
